bitfinex/quotes_SOLUSD_20220116
["timestamp","ask_amount","ask_price","bid_price","bid_amount"]
[1642366637802,10.1365,148.03,147.98,45.99827928]
[1642366638000,8.1365,148.03,147.98,45.99827928]
[1642366640303,8.1365,148.03,147.99,3.52751985]
[1642366640703,8.1365,148.03,147.99,9.52751985]
[1642366665862,8.1365,148.03,147.99,3.52751985]
[1642366666662,9.94654406,148.03,147.99,3.52751985]
[1642366667468,8.1365,148.03,147.99,3.52751985]
[1642366668165,9.94654406,148.03,147.99,3.52751985]
[1642366670164,9.94654406,148.03,147.98,39.99827928]
[1642366673774,9.94654406,148.03,147.99,3.52839836]
[1642366685210,88.94731994,148.03,147.93,1.91306775]
[1642366685612,1.81004406,148.02,147.93,6.0]
[1642366685813,10.1416,148.0,147.93,6.0]
[1642366686113,32.27298288,147.99,147.93,6.0]
[1642366686313,1.81004406,147.98,147.92,6.0]
[1642366686512,1.81004406,147.98,147.88,1.91306775]
[1642366686712,1.81004406,147.98,147.88,7.91306775]
[1642366687112,81.21301994,147.98,147.88,1.91306775]
[1642366687314,67.56,147.96,147.87,1.91306775]
[1642366687613,35.89982043,147.94,147.87,1.91306775]
[1642366687913,67.56,147.93,147.87,1.91306775]
[1642366688114,10.1465,147.92,147.83,382.69788508]
[1642366688315,11.84727588,147.92,147.83,382.69788508]
[1642366688512,9.74,147.91,147.83,382.69788508]
[1642366688915,11.44077588,147.91,147.83,382.69788508]
[1642366689113,11.44077588,147.91,147.8,1.91306775]
[1642366689114,103.59508752,147.89,147.8,1.91306775]
[1642366689316,123.48498752,147.89,147.8,1.91306775]
[1642366689516,1.70077588,147.88,147.8,1.91306775]
[1642366689715,1.70077588,147.88,147.77,3.34379877]
[1642366689716,67.56,147.86,147.77,3.34379877]
[1642366689915,9.74,147.85,147.74,0.33830159]
[1642366690114,35.89982043,147.84,147.75,37.75557012]
[1642366690314,9.74,147.83,147.75,37.75557012]
[1642366690919,77.3,147.83,147.74,0.33830159]
[1642366691115,67.56,147.81,147.74,0.33830159]
[1642366691318,1.12495022,147.78,147.74,0.33830159]
[1642366691814,36.03508752,147.77,147.74,0.33830159]
[1642366692016,6.06439994,147.76,147.74,0.33830159]
[1642366692418,10.1575,147.75,147.74,0.33830159]
[1642366693718,6.06439994,147.76,147.74,0.33830159]
[1642366693928,1.12495022,147.78,147.74,0.33830159]
[1642366694418,43.16265517,147.77,147.74,0.33830159]
[1642366695121,1.12495022,147.78,147.74,0.33830159]
[1642366695519,11.27905022,147.78,147.74,0.33830159]
[1642366695921,11.27905022,147.78,147.68,120.37467548]
[1642366696120,43.70263369,147.77,147.68,120.37467548]
[1642366697123,43.70263369,147.77,147.68,52.81467548]
[1642366697322,53.85753369,147.77,147.68,42.41107548]
[1642366698753,53.85753369,147.77,147.68,42.66107548]
[1642366699157,53.85753369,147.77,147.68,42.41107548]
[1642366699361,53.85753369,147.77,147.68,6.0]
[1642366699657,53.85753369,147.77,147.66,24.1609]
[1642366699658,132.85830957,147.77,147.66,24.1609]
[1642366699855,132.85830957,147.77,147.66,30.1609]
[1642366700354,139.00230957,147.77,147.66,30.1609]
[1642366700556,139.00230957,147.77,147.66,24.1609]
[1642366700757,139.00230957,147.77,147.65,1.7674041]
[1642366701254,172.82230957,147.77,147.65,1.7674041]
[1642366701455,172.82230957,147.77,147.64,36.53949513]
[1642366701854,172.82230957,147.77,147.64,42.53949513]
[1642366702258,172.82230957,147.77,147.64,42.78949513]
[1642366709060,172.82230957,147.77,147.64,42.53949513]
[1642366709259,7.07272958,147.74,147.62,47.2797]
[1642366709460,10.1615,147.7,147.62,47.2797]
[1642366710262,10.1615,147.7,147.63,47.94724595]
[1642366710663,10.1615,147.7,147.63,53.94724595]
[1642366710863,10.1615,147.7,147.63,54.19724595]
[1642366711061,10.1589,147.72,147.63,54.19724595]
[1642366711265,9.74,147.76,147.63,54.19724595]
[1642366711963,36.48944196,147.75,147.63,65.19487832]
[1642366712164,36.48944196,147.75,147.64,67.56]
[1642366712364,36.48944196,147.75,147.64,73.81]
[1642366712867,46.64604196,147.75,147.64,73.81]
[1642366713063,46.64604196,147.75,147.64,6.25]
[1642366713266,46.64604196,147.75,147.64,0.25]
[1642366713464,46.64604196,147.75,147.64,6.25]
[1642366713664,46.64604196,147.75,147.64,6.0]
[1642366713865,46.64604196,147.75,147.64,6.25]
[1642366714066,46.64604196,147.75,147.64,0.25]
[1642366714267,46.64604196,147.75,147.64,6.25]
[1642366714465,46.64604196,147.75,147.64,15.99]
[1642366715968,46.64604196,147.75,147.64,15.74]
[1642366717569,56.82481784,147.75,147.64,15.74]
[1642366718369,56.82481784,147.75,147.64,38.8166]
[1642366719269,66.56481784,147.75,147.62,23.9206]
[1642366719673,33.82,147.74,147.62,23.9206]
[1642366719870,10.1627,147.71,147.63,47.45144557]
[1642366720072,35.41156363,147.7,147.63,47.45144557]
[1642366720772,35.41156363,147.7,147.63,53.45144557]
[1642366721375,10.1621,147.68,147.63,53.45144557]
[1642366721579,10.1621,147.68,147.63,6.0]
[1642366721777,10.1621,147.68,147.62,29.9206]
[1642366721976,10.1621,147.68,147.62,30.1706]
[1642366722577,37.18504273,147.67,147.62,65.06590032]
[1642366724377,37.18504273,147.67,147.62,29.9206]
[1642366724608,47.34724273,147.67,147.62,6.0]
[1642366724979,47.34724273,147.67,147.61,29.3043]
[1642366726780,47.34724273,147.67,147.61,29.5543]
[1642366728586,37.18504273,147.67,147.61,29.5543]
[1642366729388,37.18504273,147.67,147.62,10.2179221]
[1642366729788,37.18504273,147.67,147.62,16.4679221]
[1642366731491,37.18504273,147.67,147.64,1.7674041]
[1642366731691,37.18504273,147.67,147.62,16.4679221]
[1642366732521,37.18504273,147.67,147.62,16.2179221]
[1642366732722,34.18504273,147.67,147.62,16.2179221]
[1642366734224,34.18504273,147.67,147.62,16.4679221]
[1642366736823,34.18504273,147.67,147.62,6.25]
[1642366737023,34.18504273,147.67,147.62,0.25]
[1642366737224,34.18504273,147.67,147.62,6.25]
[1642366737824,34.18504273,147.67,147.62,0.25]
[1642366738123,34.18504273,147.67,147.62,49.25446605]
[1642366738323,34.18504273,147.67,147.62,55.50446605]
[1642366739125,10.1615,147.69,147.62,55.50446605]
[1642366739425,67.6844,147.76,147.62,66.50209842]
[1642366739629,48.86515022,147.78,147.63,92.323]
[1642366739826,25.42275022,147.78,147.63,108.313]
[1642366740325,44.12365144,147.77,147.63,108.313]
[1642366740725,44.12365144,147.77,147.63,119.72743237]
[1642366740726,10.1573,147.75,147.63,119.72743237]
[1642366740927,44.12365144,147.77,147.63,119.72743237]
[1642366742428,54.27975144,147.77,147.63,119.72743237]
[1642366745937,54.27975144,147.77,147.63,119.47743237]
[1642366746532,54.27975144,147.77,147.63,40.503]
[1642366746732,121.83975144,147.77,147.63,40.503]
[1642366747333,54.27975144,147.77,147.63,40.503]
[1642366747737,54.27975144,147.77,147.63,108.063]
[1642366748335,54.27975144,147.77,147.63,109.57063237]
[1642366749435,54.27975144,147.77,147.63,119.72763237]
[1642366754244,54.27975144,147.77,147.63,51.91763237]
[1642366754546,121.83975144,147.77,147.63,40.503]
[1642366754745,123.54052732,147.77,147.63,30.763]
[1642366754946,77.3,147.76,147.63,30.763]
[1642366755146,10.1603,147.73,147.63,30.763]
[1642366755348,25.47295492,147.72,147.63,30.763]
[1642366756547,44.12365144,147.69,147.63,30.763]
[1642366757849,44.12365144,147.69,147.63,31.013]
[1642366763781,44.12365144,147.69,147.63,6.25]
[1642366764181,44.12365144,147.69,147.63,0.25]
[1642366764383,44.12365144,147.69,147.62,30.1463]
[1642366764584,33.873,147.72,147.62,6.25]
[1642366764784,7.0731617,147.74,147.62,6.25]
[1642366764785,10.1588,147.73,147.62,6.25]
[1642366764989,10.1588,147.73,147.64,67.56]
[1642366765387,10.1588,147.73,147.64,67.81]
[1642366765587,35.89391113,147.72,147.65,50.40373867]
[1642366765788,35.89391113,147.72,147.65,117.96373867]
[1642366765989,35.89391113,147.72,147.65,118.21373867]
[1642366766390,35.89391113,147.72,147.65,67.81]
[1642366770495,32.89391113,147.72,147.65,67.81]
[1642366773605,8.19784132,147.78,147.65,67.81]
[1642366773804,1.12495022,147.78,147.66,34.0064]
[1642366774004,1.12495022,147.78,147.67,67.56]
[1642366774206,1.12495022,147.78,147.69,67.56]
[1642366774403,1.12495022,147.78,147.7,9.74]
[1642366774606,37.55199439,147.77,147.7,9.74]
[1642366774904,37.55199439,147.77,147.7,15.99]
[1642366775107,37.55199439,147.77,147.7,83.55]
[1642366775306,37.55199439,147.77,147.7,15.99]
[1642366775804,37.55199439,147.77,147.7,15.74]
[1642366777529,47.70789439,147.77,147.7,15.74]
[1642366777834,47.70789439,147.77,147.7,15.99]
[1642366781937,47.70789439,147.77,147.7,15.74]
[1642366784239,47.70789439,147.77,147.7,15.99]
[1642366784739,47.70789439,147.77,147.7,6.25]
[1642366784940,47.70789439,147.77,147.7,0.25]
[1642366785538,47.70789439,147.77,147.68,29.1614]
[1642366785738,47.70789439,147.77,147.68,28.9114]
[1642366787441,47.70789439,147.77,147.68,29.1614]
[1642366789844,37.55199439,147.77,147.69,82.27341872]
[1642366790044,37.55199439,147.77,147.69,92.01341872]
[1642366790244,37.55199439,147.77,147.69,30.70341872]
[1642366792542,37.55199439,147.77,147.7,67.56]
[1642366792944,37.55199439,147.77,147.7,73.81]
[1642366795547,37.55199439,147.77,147.7,83.55]
[1642366798951,10.1516,147.83,147.7,84.80763237]
[1642366799954,48.80258996,147.82,147.7,84.80763237]
[1642366800159,58.95488996,147.82,147.7,93.4521]
[1642366800353,58.95488996,147.82,147.71,24.9286]
[1642366800555,58.95488996,147.82,147.72,9.74]
[1642366800756,58.95488996,147.82,147.72,49.62997492]
[1642366800953,58.95488996,147.82,147.72,55.62997492]
[1642366801855,58.95488996,147.82,147.72,123.18997492]
[1642366802055,48.80258996,147.82,147.72,123.18997492]
[1642366802255,48.80258996,147.82,147.72,123.43997492]
[1642366802458,48.80258996,147.82,147.72,133.59067492]
[1642366802654,48.80258996,147.82,147.73,23.1135]
[1642366802855,48.80258996,147.82,147.73,29.3635]
[1642366803484,48.80258996,147.82,147.73,96.9235]
[1642366803883,3.49857634,147.87,147.74,9.74]
[1642366804084,3.49857634,147.87,147.75,24.4675]
[1642366804287,3.49857634,147.87,147.76,77.3]
[1642366804504,13.64747634,147.87,147.76,77.3]
[1642366804685,13.64747634,147.87,147.76,83.55]
[1642366804884,46.35557476,147.86,147.77,14.71341872]
[1642366805283,46.35557476,147.86,147.77,88.52341872]
[1642366808188,46.35557476,147.86,147.78,9.74]
[1642366808387,46.35557476,147.86,147.8,39.88997492]
[1642366808886,46.35557476,147.86,147.8,6.25]
[1642366809488,0.55256476,147.83,147.8,0.25]
[1642366809688,0.55256476,147.83,147.8,6.25]
[1642366809888,20.79359636,147.83,147.8,6.25]
[1642366810288,20.79359636,147.83,147.78,38.2616]
[1642366810492,20.79359636,147.83,147.78,38.5116]
[1642366810691,20.79359636,147.83,147.78,38.2616]
[1642366812000,20.79359636,147.83,147.78,38.5116]
[1642366813300,20.79359636,147.83,147.78,38.2616]
[1642366814401,20.51731398,147.83,147.78,38.2616]
[1642366814630,0.27628238,147.8,147.78,38.2616]
[1642366814801,0.55256476,147.8,147.78,38.5116]
[1642366815205,46.31205606,147.8,147.78,38.5116]
[1642366815405,46.31205606,147.8,147.78,15.99]
[1642366815608,0.55256476,147.8,147.78,15.99]
[1642366816505,0.55256476,147.8,147.78,38.6871]
[1642366816907,0.55256476,147.8,147.78,15.99]
[1642366818606,0.00256476,147.8,147.78,15.99]
[1642366819407,0.00256476,147.8,147.79,24.7486]
[1642366819907,43.21176809,147.86,147.79,30.9986]
[1642366820107,43.21176809,147.86,147.79,110.90923409]
[1642366823039,1.92090009,147.88,147.79,110.90923409]
[1642366823239,1.92090009,147.88,147.81,67.67]
[1642366823441,1.92090009,147.88,147.81,73.92]
[1642366823639,1.92090009,147.88,147.81,83.66]
[1642366824047,38.91283011,147.88,147.82,42.36275955]
[1642366824245,38.91283011,147.88,147.83,67.67]
[1642366824539,38.91283011,147.88,147.83,73.92]
[1642366826140,1.92090009,147.91,147.83,73.92]
[1642366827040,1.92090009,147.91,147.83,97.0359]
[1642366827240,44.10697374,147.9,147.83,29.3659]
[1642366828844,1.92090009,147.91,147.84,77.41]
[1642366829049,1.92090009,147.91,147.84,83.761]
[1642366829248,1.92090009,147.91,147.84,90.011]
[1642366829544,1.92090009,147.91,147.85,1.25763237]
[1642366829744,1.92090009,147.91,147.86,32.12143409]
[1642366829945,1.92090009,147.91,147.86,32.37143409]
[1642366830145,1.92090009,147.91,147.87,67.67]
[1642366830344,1.92090009,147.91,147.87,67.92]
[1642366830545,1.92090009,147.91,147.87,73.92]
[1642366830752,1.92090009,147.95,147.87,73.92]
[1642366830949,1.92090009,147.95,147.88,23.4917]
[1642366831146,36.24033842,147.94,147.88,23.4917]
[1642366831349,36.24033842,147.94,147.88,29.7417]
[1642366832149,36.24033842,147.94,147.88,70.93669196]
[1642366832352,36.24033842,147.94,147.88,80.67669196]
[1642366832549,36.24033842,147.94,147.88,148.34669196]
[1642366833349,38.16123851,147.94,147.88,148.34669196]
[1642366833549,38.16123851,147.94,147.88,80.67669196]
[1642366833951,36.24033842,147.94,147.88,80.67669196]
[1642366834350,36.24033842,147.94,147.88,148.34669196]
[1642366838853,36.24033842,147.94,147.88,107.1517]
[1642366839455,36.24033842,147.94,147.88,39.4817]
[1642366839855,36.24033842,147.94,147.88,39.2317]
[1642366841860,38.16123851,147.94,147.88,39.2317]
[1642366842259,38.16123851,147.94,147.88,39.4817]
[1642366842658,36.24033842,147.94,147.88,39.4817]
[1642366842859,36.24033842,147.94,147.89,67.67]
[1642366843260,36.24033842,147.94,147.89,73.92]
[1642366844462,36.24033842,147.94,147.89,6.25]
[1642366844659,36.24033842,147.94,147.89,0.25]
[1642366844861,36.24033842,147.94,147.89,6.0]
[1642366845268,36.24033842,147.94,147.89,6.25]
[1642366845459,36.24033842,147.94,147.89,0.25]
[1642366846363,36.24033842,147.94,147.88,39.4817]
[1642366852197,38.16123851,147.94,147.88,39.4817]
[1642366853598,36.24033842,147.94,147.88,39.4817]
[1642366854595,38.16123851,147.94,147.88,39.4817]
[1642366855901,1.92090009,147.93,147.88,39.4817]
[1642366857305,1.92090009,147.93,147.88,107.1517]
[1642366858406,1.92090009,147.93,147.88,117.2915]
[1642366859206,37.66123851,147.94,147.88,117.2915]
[1642366864717,36.24033842,147.94,147.88,117.2915]
[1642366865819,36.24033842,147.94,147.88,116.1915]
[1642366866921,3.49857634,147.98,147.88,116.1915]
[1642366867552,3.49857634,147.99,147.88,116.1915]
[1642366868054,46.62578165,147.98,147.88,116.1915]
[1642366869551,46.62578165,147.98,147.88,117.45826799]
[1642366871054,46.62578165,147.98,147.88,127.57786799]
[1642366874158,25.09690944,148.0,147.88,127.57786799]
[1642366874358,1.27760944,148.0,147.88,133.61886799]
[1642366875157,42.34740025,147.99,147.88,133.61886799]
[1642366876657,42.34740025,147.99,147.88,127.57786799]
[1642366877958,1.27760944,148.0,147.88,127.57786799]
[1642366878160,1.27760944,148.0,147.88,135.36686799]
[1642366879061,48.95649284,147.99,147.88,135.36686799]
[1642366880459,1.27760944,148.0,147.88,135.36686799]
[1642366881063,3.49857634,148.02,147.88,268.22288473]
[1642366881261,3.49857634,148.03,147.94,67.67]
[1642366881462,44.50807643,148.03,147.95,26.85919095]
[1642366881661,44.50807643,148.03,147.95,49.48289095]
[1642366881860,44.50807643,148.03,147.96,67.67]
[1642366882061,44.50807643,148.03,147.97,77.41]
[1642366882266,44.50807643,148.03,147.98,37.48420269]
[1642366882462,41.00950009,148.03,147.98,37.73420269]
[1642366882762,41.00950009,148.03,147.98,43.73420269]
[1642366883164,3.49857634,148.05,147.98,43.73420269]
[1642366883364,3.49857634,148.06,147.98,43.73420269]
[1642366884265,48.69148255,148.05,147.98,43.73420269]
[1642366885468,48.69148255,148.05,147.98,6.25]
[1642366886669,48.69148255,148.05,147.98,0.25]
[1642366886867,48.69148255,148.05,147.97,130.14802223]
[1642366886868,48.69148255,148.05,147.97,130.39802223]
[1642366888672,48.69148255,148.05,147.98,91.4799]
[1642366888871,48.69148255,148.05,147.98,97.4799]
[1642366889070,48.69148255,148.05,147.98,97.7299]
[1642366900183,48.69148255,148.05,148.0,67.67]
[1642366900381,48.69148255,148.05,148.0,67.92]
[1642366900582,48.69148255,148.05,148.0,116.48932679]
[1642366901382,48.69148255,148.05,148.0,126.62122679]
[1642366903183,48.69148255,148.05,148.0,136.36122679]
[1642366903783,3.49857634,148.09,148.0,136.36122679]
[1642366904783,42.86028847,148.08,148.0,137.62799478]
[1642366904984,42.86028847,148.08,148.03,12.03406685]
[1642366905185,42.86028847,148.08,148.03,79.70406685]
[1642366905385,42.86028847,148.08,148.03,85.95406685]
[1642366905683,42.86028847,148.08,148.03,67.92]
[1642366906683,42.86028847,148.08,148.03,73.92]
[1642366908189,42.86028847,148.08,148.03,6.25]
[1642366909088,42.86028847,148.08,148.03,0.25]
[1642366909288,42.86028847,148.08,148.03,6.25]
[1642366909492,42.86028847,148.08,148.03,6.0]
[1642366909692,42.86028847,148.08,148.03,6.25]
[1642366910591,42.86028847,148.08,148.03,0.25]
[1642366910791,42.86028847,148.08,148.03,6.25]
[1642366910997,42.86028847,148.08,148.03,6.0]
[1642366911196,42.86028847,148.08,148.03,6.25]
[1642366911398,42.86028847,148.08,148.03,0.25]
[1642366912396,42.86028847,148.08,148.02,61.68121604]
[1642366912597,42.86028847,148.08,148.02,15.99]
[1642366913298,42.86028847,148.08,148.02,39.4848]
[1642366916329,42.86028847,148.08,148.02,107.1548]
[1642366916527,42.86028847,148.08,148.02,39.4848]
[1642366921534,42.86028847,148.08,148.02,15.99]
[1642366922334,42.86028847,148.08,148.02,15.74]
[1642366923637,42.86028847,148.08,148.02,15.99]
[1642366924636,42.86028847,148.08,148.03,76.71524431]
[1642366924837,42.86028847,148.08,148.03,82.96524431]
[1642366925837,42.86028847,148.08,148.04,9.74]
[1642366926037,42.86028847,148.08,148.05,67.67]
[1642366926436,1.21466713,148.12,148.05,73.92]
[1642366927136,1.21466713,148.12,148.05,6.25]
[1642366927336,49.84643123,148.11,148.06,23.4976]
[1642366927541,3.49857634,148.14,148.07,67.67]
[1642366927739,3.49857634,148.14,148.08,9.74]
[1642366927938,3.49857634,148.14,148.08,15.99]
[1642366928538,44.68911473,148.13,148.08,83.66]
[1642366929341,44.68911473,148.13,148.08,129.21814933]
[1642366929543,44.68911473,148.13,148.08,139.34434933]
[1642366929950,3.49857634,148.15,148.08,139.34434933]
[1642366930150,3.49857634,148.16,148.08,145.97334933]
[1642366931046,39.38071771,148.15,148.08,145.97334933]
[1642366931346,39.38071771,148.15,148.08,147.24011732]
[1642366932650,39.38071771,148.15,148.08,141.24011732]
[1642366932847,39.38071771,148.15,148.08,134.61111732]
[1642366933951,39.38071771,148.15,148.08,140.61111732]
[1642366940281,3.49857634,148.2,148.11,67.67]
[1642366940477,3.49857634,148.2,148.13,67.67]
[1642366940681,3.49857634,148.2,148.15,67.67]
[1642366940881,3.49857634,148.2,148.15,73.92]
[1642366941180,47.84780369,148.19,148.15,73.92]
[1642366942078,47.84780369,148.19,148.15,6.25]
[1642366942478,47.84780369,148.19,148.15,0.25]
[1642366942678,47.84780369,148.19,148.14,40.2578]
[1642366943583,47.84780369,148.19,148.14,107.9278]
[1642366945983,47.84780369,148.19,148.14,40.2578]
[1642366947285,47.84780369,148.19,148.14,15.99]
[1642366949188,47.84780369,148.19,148.14,15.74]
[1642366950907,47.84780369,148.19,148.14,15.99]
[1642366960140,47.84780369,148.19,148.14,15.74]
[1642366960541,47.84780369,148.19,148.14,9.74]
[1642366961442,47.84780369,148.19,148.14,9.99]
[1642366961943,47.84780369,148.19,148.14,15.99]
[1642366963243,47.84780369,148.19,148.14,9.99]
[1642366966850,47.84780369,148.19,148.14,83.66]
[1642366967049,47.84780369,148.19,148.14,15.99]
[1642366974279,47.84780369,148.19,148.14,38.9645]
[1642366979685,1.923777,148.18,148.14,38.9645]
[1642366980993,1.923777,148.18,148.14,106.6345]
[1642366981488,1.923777,148.18,148.14,100.6345]
[1642366982389,1.923777,148.18,148.14,110.7565]
[1642366982591,41.83399019,148.19,148.14,110.7565]
[1642366982990,41.83399019,148.19,148.14,116.7565]
[1642366985896,41.83399019,148.19,148.14,116.5065]
[1642366987401,41.83399019,148.19,148.14,116.7565]
[1642366987798,39.91021319,148.19,148.14,116.7565]
[1642366988501,1.923777,148.19,148.14,116.7565]
[1642366989603,51.62026138,148.19,148.14,116.7565]
[1642366993037,49.69648438,148.19,148.14,116.7565]
[1642366994038,51.62026138,148.19,148.14,116.7565]
[1642366994840,49.69648438,148.19,148.14,116.7565]
[1642366995539,51.62026138,148.19,148.14,116.7565]
[1642366996539,49.69648438,148.19,148.14,116.7565]
[1642366997139,51.62026138,148.19,148.14,116.7565]
[1642366997540,51.62026138,148.19,148.14,49.0865]
[1642366997838,51.62026138,148.19,148.14,15.74]
[1642366998847,1.923777,148.18,148.14,15.74]
[1642366999046,1.923777,148.18,148.14,15.99]
[1642367001955,1.923777,148.18,148.14,6.25]
[1642367002951,1.923777,148.18,148.14,0.25]
[1642367003151,1.923777,148.18,148.13,30.5748]
[1642367010460,51.62026138,148.19,148.13,30.5748]
[1642367019297,51.62026138,148.19,148.14,9.74]
[1642367019698,51.62026138,148.19,148.14,9.99]
[1642367020298,51.62026138,148.19,148.14,22.54502076]
[1642367020699,51.62026138,148.19,148.14,9.99]
[1642367022001,51.62026138,148.19,148.14,15.99]
[1642367028007,51.62026138,148.19,148.14,15.74]
[1642367028207,51.62026138,148.19,148.1,9.74]
[1642367028434,58.63826138,148.19,148.08,1.77405466]
[1642367030008,68.76556138,148.19,148.08,2.02405466]
[1642367030209,61.74756138,148.19,148.08,8.02405466]
[1642367030408,1.923777,148.16,148.08,0.25]
[1642367030608,1.923777,148.16,148.08,6.25]
[1642367031018,1.923777,148.16,148.08,6.0]
[1642367031219,1.923777,148.16,148.07,15.74]
[1642367031410,3.08389898,148.15,148.07,15.74]
[1642367032010,3.08389898,148.15,148.07,38.71421593]
[1642367032310,3.08389898,148.15,148.07,38.96421593]
[1642367033710,1.16012198,148.15,148.07,15.99]
[1642367034610,1.16012198,148.15,148.07,62.67833589]
[1642367036714,1.16012198,148.15,148.07,15.99]
[1642367037611,1.16012198,148.15,148.07,15.74]
[1642367037811,1.16012198,148.15,148.07,6.0]
[1642367038212,1.16012198,148.15,148.06,53.46205278]
[1642367038519,11.29012198,148.15,148.06,53.46205278]
[1642367038912,11.29012198,148.15,148.06,6.0]
[1642367039116,11.29012198,148.15,148.05,30.6249]
[1642367040516,11.29012198,148.15,148.05,6.0]
[1642367040717,17.29012198,148.15,148.04,9.74]
[1642367040916,84.96012198,148.15,148.04,15.74]
[1642367041514,86.88389898,148.15,148.04,15.74]
[1642367041917,86.88389898,148.15,148.04,9.99]
[1642367042314,84.96012198,148.15,148.04,9.99]
[1642367043415,86.88389898,148.15,148.04,9.99]
[1642367044423,84.96012198,148.15,148.04,9.99]
[1642367045920,84.96012198,148.15,148.04,9.74]
[1642367047124,84.96012198,148.15,148.04,32.96]
[1642367047323,84.96012198,148.15,148.04,33.21]
[1642367048025,84.96012198,148.15,148.04,32.96]
[1642367048625,19.21389898,148.15,148.04,32.96]
[1642367049324,19.21389898,148.15,148.04,38.96]
[1642367049528,19.21389898,148.15,148.04,39.21]
[1642367050130,17.29012198,148.15,148.04,39.21]
[1642367051629,11.29012198,148.15,148.04,39.21]
[1642367053028,11.29012198,148.15,148.04,106.88]
[1642367053429,11.29012198,148.15,148.04,39.21]
[1642367055331,1.923777,148.14,148.04,40.98405466]
[1642367058336,18.054477,148.14,148.04,40.73405466]
[1642367058538,18.054477,148.14,148.04,34.73405466]
[1642367058739,19.75525288,148.14,148.04,24.99405466]
[1642367059140,1.923777,148.13,148.04,23.22]
[1642367059341,47.96664843,148.12,148.04,23.22]
[1642367059947,47.96664843,148.12,148.04,23.47]
[1642367060147,60.05964843,148.12,148.04,23.47]
[1642367060349,60.05964843,148.12,148.04,23.22]
[1642367060547,60.05964843,148.12,148.02,1.77405466]
[1642367060746,70.19174843,148.12,148.02,1.77405466]
[1642367061749,10.134,148.09,148.02,0.25]
[1642367061948,2.88995793,148.08,148.01,1.27405466]
[1642367062750,2.88995793,148.08,148.0,24.6555]
[1642367062951,2.88995793,148.08,148.0,30.6555]
[1642367063352,2.88995793,148.08,148.0,30.9055]
[1642367063954,2.88995793,148.08,148.0,30.6555]
[1642367064159,13.02475793,148.08,148.0,24.6555]
[1642367065355,13.02475793,148.08,148.0,24.9055]
[1642367065757,13.02475793,148.08,148.0,24.6555]
[1642367065969,13.02475793,148.08,148.0,24.9055]
[1642367070474,19.02475793,148.08,148.0,24.9055]
[1642367070673,13.02475793,148.08,148.0,24.9055]
[1642367070874,19.02475793,148.08,148.0,24.9055]
[1642367071372,18.52475793,148.08,148.0,24.9055]
[1642367073379,12.52475793,148.08,148.0,24.9055]
[1642367074882,2.38995793,148.08,148.0,60.34461458]
[1642367080084,2.38995793,148.08,148.0,54.34461458]
[1642367083791,2.38995793,148.08,148.0,24.9055]
[1642367086020,1.38995793,148.08,148.0,24.9055]
[1642367086225,1.38995793,148.08,148.0,24.6555]
[1642367087725,1.38995793,148.08,148.0,24.9055]
[1642367088125,11.52475793,148.08,148.0,24.9055]
[1642367089029,11.52475793,148.08,148.0,50.69991167]
[1642367089227,11.52475793,148.08,148.0,24.9055]
[1642367097238,11.52475793,148.08,148.0,0.25]
[1642367097439,67.67,148.07,147.93,9.74]
[1642367097638,10.1383,148.04,147.92,99.79727828]
[1642367097838,77.8083,148.04,147.92,99.79727828]
[1642367098439,40.66053468,148.03,147.93,24.6735]
[1642367098638,10.1397,148.01,147.93,24.6735]
[1642367098838,8.69607168,148.0,147.93,24.6735]
[1642367099938,8.69607168,148.0,147.93,24.9235]
[1642367102041,18.83617168,148.0,147.93,24.9235]
[1642367104145,18.83617168,148.0,147.94,26.71977606]
[1642367104345,18.83617168,148.0,147.93,24.9235]
[1642367107951,24.83617168,148.0,147.93,24.9235]
[1642367111354,8.69607168,148.0,147.93,24.9235]
[1642367119262,8.69607168,148.0,147.93,24.6735]
[1642367119461,8.69607168,148.0,147.89,32.286]
[1642367119462,18.83627168,148.0,147.89,32.286]
[1642367119666,24.83627168,148.0,147.89,22.546]
[1642367119862,24.83627168,148.0,147.89,28.546]
[1642367120064,18.83627168,148.0,147.89,70.92916668]
[1642367120262,18.83627168,148.0,147.9,23.5634]